fUSD/lending_fUSD_20260218
["ID","MTS","AMOUNT","RATE_DAILY","PERIOD"]
[405871976,1771375850610,-250.0,0.00016154,2]
[405871977,1771375850619,-250.0,0.00016154,2]
[405871978,1771375850629,-250.0,0.00016154,2]
[405871979,1771375850639,-250.0,0.00016154,2]
[405871980,1771375850647,-250.0,0.00016154,2]
[405871981,1771375850656,-250.0,0.00016154,2]
[405871982,1771375850665,-250.0,0.00016154,2]
[405871983,1771375850675,-250.0,0.00016154,2]
[405871984,1771375850684,-250.0,0.00016154,2]
[405871985,1771375850694,-250.0,0.00016154,2]
[405871986,1771375850703,-250.0,0.00016154,2]
[405871987,1771375850713,-250.0,0.00016154,2]
[405871988,1771375850722,-250.0,0.00016154,2]
[405871989,1771375850733,-250.0,0.00016154,2]
[405871990,1771375850742,-250.0,0.00016154,2]
[405871991,1771375850752,-250.0,0.00016154,2]
[405871992,1771375850760,-250.0,0.00016154,2]
[405871993,1771375850769,-250.0,0.00016154,2]
[405871994,1771375850779,-250.0,0.00016154,2]
[405871995,1771375850789,-250.0,0.00016154,2]
[405871996,1771375850798,-151.0,0.00016154,2]
[405871997,1771375850807,-250.0,0.00016154,2]
[405871998,1771375850816,-250.0,0.00016154,2]
[405871999,1771375850827,-250.0,0.00016154,2]
[405872000,1771375850837,-250.0,0.00016154,2]
[405872001,1771375850846,-250.0,0.00016154,2]
[405872002,1771375850856,-250.0,0.00016154,2]
[405872003,1771375850869,-250.0,0.00016154,2]
[405872004,1771375850878,-250.0,0.00016154,2]
[405872005,1771375850887,-250.0,0.00016154,2]
[405872006,1771375850897,-250.0,0.00016154,2]
[405872007,1771375850906,-250.0,0.00016154,2]
[405872008,1771375850916,-250.0,0.00016154,2]
[405872009,1771375850926,-250.0,0.00016154,2]
[405872010,1771375850935,-250.0,0.00016154,2]
[405872011,1771375850944,-250.0,0.00016154,2]
[405872012,1771375850953,-250.0,0.00016154,2]
[405872013,1771375850962,-250.0,0.00016154,2]
[405872014,1771375850972,-693.3919763,0.00016154,2]
[405872015,1771375850981,-250.0,0.00016154,2]
[405872016,1771375850990,-250.0,0.00016154,2]
[405872017,1771375851000,-299.40346672,0.00016154,2]
[405872018,1771375851009,-250.0,0.00016154,2]
[405872019,1771375851019,-250.0,0.00016154,2]
[405872020,1771375851028,-250.0,0.00016154,2]
[405872021,1771375851038,-250.0,0.00016154,2]
[405872022,1771375851049,-277.35679052,0.00016154,2]
[405872023,1771375851059,-250.0,0.00016154,2]
[405872024,1771375851069,-250.0,0.00016154,2]
[405872025,1771375851089,-250.0,0.00016154,2]
[405872026,1771375851103,-150.0,0.000162,2]
[405872027,1771375851112,-151.0,0.00016209,2]
[405872028,1771375851122,-719.04747942,0.00016209,2]
[405872029,1771375851131,-996.49958588,0.00016258,2]
[405872030,1771375851140,-151.0,0.00016264,2]
[405872031,1771375851150,-745.65223616,0.00016264,2]
[405872032,1771375851159,-161.0,0.000163,2]
[405872033,1771375851168,-2000.0,0.000163,2]
[405872034,1771375851177,-151.0,0.00016319,2]
[405872035,1771375851187,-773.2413689,0.00016319,2]
[405872036,1771375851198,-1088.37215301,0.0001633,2]
[405872037,1771375851207,-500.0,0.00016356,2]
[405872038,1771375851217,-500.0,0.00016356,2]
[405872039,1771375851226,-151.0,0.00016374,2]
[405872040,1771375851236,-801.85129955,0.00016374,2]
[405872041,1771375851246,-2832.0,0.000164,2]
[405872042,1771375851256,-2835.0,0.000164,2]
[405872043,1771375851265,-1000.0,0.00016413,7]
[405872044,1771375851275,-151.0,0.00016429,2]
[405872045,1771375851284,-831.51979763,0.00016429,2]
[405872046,1771375851294,-2789.9,0.00016438,2]
[405872047,1771375851303,-887.51,0.00016438,2]
[405872048,1771375851313,-1982.0,0.00016438,2]
[405872049,1771375851324,-151.02975848,0.00016438,2]
[405872050,1771375851334,-841.0,0.00016438,2]
[405872051,1771375851343,-151.0,0.00016438,2]
[405872052,1771375851352,-151.0,0.00016438,2]
[405872053,1771375851361,-263.14377,0.00016438,2]
[405872054,1771375851371,-263.14377,0.00016438,2]
[405872055,1771375851380,-263.14377,0.00016438,2]
[405872056,1771375851390,-263.14377,0.00016438,2]
[405872057,1771375851399,-1000.0,0.00016438,2]
[405872058,1771375851409,-151.0,0.00016484,2]
[405872059,1771375851418,-862.28603014,0.00016484,2]
[405872060,1771375851427,-1982.0,0.00016493,2]
[405872061,1771375851436,-150.0,0.000165,2]
[405872062,1771375851445,-1003.50041412,0.00016537,2]
[405872063,1771375851455,-151.0,0.00016539,2]
[405872064,1771375851464,-894.19061326,0.00016539,2]
[405872065,1771375851475,-393.71,0.00016545,2]
[405872066,1771375851486,-1982.0,0.00016548,2]
[405872067,1771375851495,-151.0,0.00016594,2]
[405872068,1771375851504,-927.27566595,0.00016594,2]
[405872069,1771375851514,-1982.0,0.00016602,2]
[405872070,1771375851524,-3576.92029958,0.0001661,2]
[405872071,1771375851533,-1035.74923491,0.00016612,2]
[405872072,1771375851542,-1195.0,0.00016633,2]
[405872073,1771375851553,-151.0,0.00016649,2]
[405872074,1771375851562,-961.58486559,0.00016649,2]
[405872075,1771375851571,-1982.0,0.00016657,2]
[405872076,1771375851580,-200.0,0.00016702,2]
[405872077,1771375851589,-181.08010149,0.00016702,2]
[405872078,1771375851599,-771.01748645,0.00016702,2]
[405872079,1771375851608,-287.61899177,0.00016702,2]
[405872080,1771375851618,-151.0,0.00016704,2]
[405872081,1771375851627,-997.16350561,0.00016704,2]
[405872082,1771375851636,-1000.0,0.00016711,2]
[405872083,1771375851646,-1982.0,0.00016712,2]
[405872084,1771375851655,-841.0,0.00016712,2]
[405872085,1771375851665,-1000.0,0.00016712,2]
[405872086,1771375851674,-199.23,0.00016712,2]
[405872087,1771375851683,-160.0,0.0001672,2]
[405872088,1771375851692,-842.0,0.0001672,2]
[405872089,1771375851702,-842.0,0.0001672,2]
[405872090,1771375851711,-1000.0,0.00016742,2]
[405872091,1771375851720,-1000.0,0.0001675,2]
[405872092,1771375851730,-151.0,0.00016759,2]
[405872093,1771375851739,-15296.93137855,0.00016762,2]
[405872094,1771375851748,-1982.0,0.00016767,2]
[405872095,1771375851758,-200.0,0.00016792,2]
[405872096,1771375851767,-150.0,0.000168,2]
[405872097,1771375851776,-3228.0,0.000168,2]
[405872098,1771375851785,-3994.0,0.000168,2]
[405872099,1771375851794,-1195.0,0.00016805,2]
[405872100,1771375851803,-151.0,0.00016814,2]
[405872101,1771375851812,-1195.0,0.0001682,2]
[405872102,1771375851822,-1982.0,0.00016822,2]
[405872103,1771375851831,-1195.0,0.00016836,2]
[405872104,1771375851840,-151.0,0.00016869,2]
[405872105,1771375851849,-1982.0,0.00016876,2]
[405872106,1771375851858,-162.0,0.000169,2]
[405872107,1771375851867,-245.41,0.000169,2]
[405872108,1771375851876,-151.0,0.00016924,2]
[405872109,1771375851885,-1982.0,0.00016931,2]
[405872110,1771375851894,-1195.0,0.00016963,2]
[405872111,1771375851903,-245.41,0.00016979,2]
[405872112,1771375851912,-500.0,0.00016983,2]
[405872113,1771375851921,-1982.0,0.00016986,2]
[405872114,1771375851930,-841.0,0.00016986,2]
[405872115,1771375851939,-1000.0,0.00016986,2]
[405872116,1771375851949,-151.0,0.00016987,2]
[405872117,1771375851958,-855879.1106275,0.0001699,2]
[405872118,1771375851967,-2197.9709392,0.0001699,2]
[405872119,1771375851976,-162.238527,0.0001699,2]
[405872120,1771375851985,-8731.9877118,0.0001699,2]
[405872121,1771375851993,-151.0,0.0001699,2]
[405872122,1771375852002,-151.0,0.0001699,2]
[405872123,1771375852011,-158.396759,0.0001699,2]
[405872124,1771375852019,-6593.9128177,0.0001699,2]
[405872125,1771375852029,-151.0,0.0001699,2]
[405872126,1771375852038,-151.0,0.0001699,2]
[405872127,1771375852046,-242.009051,0.0001699,2]
[405872128,1771375852055,-242.009051,0.0001699,2]
[405872129,1771375852064,-242.009051,0.0001699,2]
[405872130,1771375852074,-242.009051,0.0001699,2]
[405872131,1771375852084,-82584.05833558,0.00017,2]
[405872132,1771375852093,-2835.0,0.0001704,2]
[405872133,1771375852102,-970.0,0.0001704,2]
[405872134,1771375852112,-1982.0,0.00017041,2]
[405872135,1771375852121,-371.0,0.00017044,2]
[405872136,1771375852131,-1982.0,0.00017096,2]
[405872137,1771375852141,-857.54012593,0.00017096,2]
[405872138,1771375852151,-150.0,0.000171,2]
[405872139,1771375852161,-196837.22809,0.000171,2]
[405872140,1771375852171,-151.0,0.000171,2]
[405872141,1771375852182,-151.0,0.000171,2]
[405872142,1771375852191,-820.0,0.000171,2]
[405872143,1771375852201,-151.0,0.000171,2]
[405872144,1771375852211,-445.585732,0.000171,2]
[405872145,1771375852220,-445.585732,0.000171,2]
[405872146,1771375852232,-445.585732,0.000171,2]
[405872147,1771375852241,-445.585732,0.000171,2]
[405872148,1771375852252,-1573.195363,0.000171,2]
[405872149,1771375852262,-1573.195363,0.000171,2]
[405872150,1771375852271,-1573.195363,0.000171,2]
[405872151,1771375852280,-1573.195363,0.000171,2]
[405872152,1771375852290,-153.934786,0.000171,2]
[405872153,1771375852300,-346.928153,0.000171,2]
[405872154,1771375852311,-346.928153,0.000171,2]
[405872155,1771375852321,-263.14377,0.000171,2]
[405872156,1771375852331,-346.928153,0.000171,2]
[405872157,1771375852340,-263.14377,0.000171,2]
[405872158,1771375852349,-346.928153,0.000171,2]
[405872159,1771375852359,-263.14377,0.000171,2]
[405872160,1771375852369,-263.14377,0.000171,2]
[405872161,1771375852379,-350.0,0.00017132,2]
[405872162,1771375852389,-3354.94878458,0.00017139,2]
[405872163,1771375852400,-8796.0,0.00017147,2]
[405872164,1771375852411,-1982.0,0.0001715,2]
[405872165,1771375852422,-1000.0,0.00017165,2]
[405872166,1771375852432,-3162.0,0.00017165,2]
[405872167,1771375852442,-857.54012593,0.00017178,2]
[405872168,1771375852452,-1000.0,0.0001718,2]
[405872169,1771375852462,-1000.0,0.00017199,2]
[405872170,1771375852471,-1982.0,0.00017205,2]
[405872171,1771375852483,-152.0,0.00017207,4]
[405872172,1771375852493,-857.54012593,0.00017233,2]
[405872173,1771375852501,-166.38,0.00017233,2]
[405872174,1771375852510,-187.78006525,0.0001725,2]
[405872175,1771375852520,-799.54513345,0.0001725,2]
[405872176,1771375852530,-298.26089446,0.0001725,2]
[405872177,1771375852539,-151.09,0.00017258,2]
[405872178,1771375852548,-1982.0,0.0001726,2]
[405872179,1771375852558,-841.0,0.0001726,2]
[405872180,1771375852567,-1000.0,0.0001726,2]
[405872181,1771375852576,-393.71,0.00017297,2]
[405872182,1771375852585,-166.38,0.00017306,2]
[405872183,1771375852594,-1982.0,0.00017315,2]
[405872184,1771375852603,-857.54012593,0.00017315,2]
[405872185,1771375852613,-188.0,0.00017324,2]
[405872186,1771375852621,-188.0,0.00017325,2]
[405872187,1771375852631,-150.0,0.0001734,2]
[405872188,1771375852640,-221.0,0.0001734,2]
[405872189,1771375852649,-220.0,0.0001734,2]
[405872190,1771375852658,-268.0,0.0001734,2]
[405872191,1771375852667,-1000.0,0.00017352,2]
[405872192,1771375852676,-2835.0,0.0001736,2]
[405872193,1771375852685,-1000.0,0.00017368,2]
[405872194,1771375852694,-1982.0,0.0001737,2]
[405872195,1771375852703,-857.54012593,0.0001737,2]
[405872196,1771375852712,-150.0,0.00017375,2]
[405872197,1771375852721,-166.38,0.00017379,2]
[405872198,1771375852730,-150.0,0.000174,2]
[405872199,1771375852739,-2555.4951848,0.000174,5]
[405872200,1771375852748,-1982.0,0.00017424,2]
[405872201,1771375852757,-206.826734,0.00017436,2]
[405872202,1771375852766,-371.0,0.00017436,2]
[405872203,1771375852774,-1000.0,0.0001744,2]
[405872204,1771375852784,-152.0,0.00017451,5]
[405872205,1771375852793,-2000.0,0.00017452,7]
[405872206,1771375852803,-857.54012593,0.00017452,2]
[405872207,1771375852812,-371.0,0.00017469,2]
[405872208,1771375852821,-1253.0,0.00017476,2]
[405872209,1771375852831,-1982.0,0.00017479,2]
[405872210,1771375852840,-150.0,0.00017495,2]
[405872211,1771375852849,-857.54012593,0.00017507,2]
[405872212,1771375852858,-1982.0,0.00017534,2]
[405872213,1771375852867,-841.0,0.00017534,2]
[405872214,1771375852877,-1000.0,0.00017534,2]
[405872215,1771375852886,-3420.0,0.0001756,2]
[405872216,1771375852895,-1982.0,0.00017589,2]
[405872217,1771375852904,-857.54012593,0.00017589,2]
[405872218,1771375852913,-150.0,0.00017593,2]
[405872219,1771375852922,-2000.0,0.000176,2]
[405872220,1771375852931,-2200.0,0.000176,6]
[405872221,1771375852940,-2835.0,0.00017636,2]
[405872222,1771375852949,-10846.14923654,0.0001764,2]
[405872223,1771375852958,-188.0,0.0001764,2]
[405872224,1771375852967,-1982.0,0.00017643,2]
[405872225,1771375853193,-857.54012593,0.00017644,2]
[405872226,1771375853204,-350.0,0.0001765,2]
[405872227,1771375853214,-2835.0,0.0001768,2]
[405872228,1771375853225,-190.0,0.0001768,2]
[405872229,1771375853235,-1000.0,0.00017688,2]
[405872230,1771375853245,-1000.0,0.00017694,2]
[405872231,1771375853255,-152.0,0.00017695,6]
[405872232,1771375853265,-1986.56309185,0.00017698,2]
[405872233,1771375853276,-150.0,0.000177,2]
[405872234,1771375853286,-784.32813885,0.000177,2]
[405872235,1771375853295,-403.0,0.000177,5]
[405872236,1771375853305,-2200.0,0.000177,6]
[405872237,1771375853314,-3420.0,0.00017721,2]
[405872238,1771375853324,-382.0,0.00017725,2]
[405872239,1771375853334,-500.0,0.00017726,7]
[405872240,1771375853345,-857.54012593,0.00017726,2]
[405872241,1771375853354,-2004.41635969,0.0001773,2]
[405872242,1771375853364,-150.0,0.00017741,2]
[405872243,1771375853373,-382.0,0.00017759,2]
[405872244,1771375853383,-350.0,0.0001776,2]
[405872245,1771375853392,-188.0,0.00017767,2]
[405872246,1771375853403,-382.0,0.00017768,2]
[405872247,1771375853412,-1000.0,0.00017777,2]
[405872248,1771375853423,-857.54012593,0.00017781,2]
[405872249,1771375853432,-194.72792766,0.00017798,2]
[405872250,1771375853443,-829.12830338,0.00017798,2]
[405872251,1771375853453,-309.29654756,0.00017798,2]
[405872252,1771375853463,-2200.0,0.000178,6]
[405872253,1771375853474,-150.0,0.00017802,2]
[405872254,1771375853488,-444.64,0.00017808,2]
[405872255,1771375853497,-500.0,0.00017808,2]
[405872256,1771375853507,-500.0,0.00017808,2]
[405872257,1771375853518,-500.0,0.00017808,2]
[405872258,1771375853527,-500.0,0.00017808,2]
[405872259,1771375853537,-428.28311124,0.00017808,2]
[405872260,1771375853546,-500.0,0.00017808,2]
[405872261,1771375853557,-500.0,0.00017808,2]
[405872262,1771375853567,-500.0,0.00017808,2]
[405872263,1771375853577,-500.0,0.00017808,2]
[405872264,1771375853587,-500.0,0.00017808,2]
[405872265,1771375853598,-500.0,0.00017808,2]
[405872266,1771375853607,-500.0,0.00017808,2]
[405872267,1771375853616,-500.0,0.00017808,2]
[405872268,1771375853626,-500.0,0.00017808,2]
[405872269,1771375853635,-500.0,0.00017808,2]
[405872270,1771375853645,-500.0,0.00017808,2]
[405872271,1771375853654,-500.0,0.00017808,2]
[405872272,1771375853663,-500.0,0.00017808,2]
[405872273,1771375853673,-500.0,0.00017808,2]
[405872274,1771375853682,-500.0,0.00017808,2]
[405872275,1771375853691,-350.0,0.00017808,2]
[405872276,1771375853701,-841.0,0.00017808,2]
[405872277,1771375853712,-800.0,0.00017808,2]
[405872278,1771375853733,-1000.0,0.00017808,2]
[405872279,1771375853752,-250.0,0.00017808,20]
[405872280,1771375853767,-250.0,0.00017808,20]
[405872281,1771375853778,-250.0,0.00017808,20]
[405872282,1771375853788,-250.0,0.00017808,20]
[405872283,1771375853799,-311.844149,0.00017808,2]
[405872284,1771375853810,-250.0,0.00017808,20]
[405872285,1771375853819,-311.844149,0.00017808,2]
[405872286,1771375853832,-250.0,0.00017808,20]
[405872287,1771375853842,-250.0,0.00017808,20]
[405872288,1771375853852,-175.581622,0.00017808,20]
[405872289,1771375853864,-311.844149,0.00017808,2]
[405872290,1771375853874,-311.844149,0.00017808,2]
[405872291,1771375853883,-311.844149,0.00017808,2]
[405872292,1771375853893,-311.844149,0.00017808,2]
[405872293,1771375853903,-311.844149,0.00017808,2]
[405872294,1771375853914,-311.844149,0.00017808,2]
[405872295,1771375853924,-1000.0,0.00017819,2]
[405872296,1771375853934,-2000.0,0.0001782,2]
[405872297,1771375853945,-2000.0,0.0001782,2]
[405872298,1771375853956,-200.0,0.00017855,2]
[405872299,1771375853967,-500.0,0.00017856,2]
[405872300,1771375853978,-200.0,0.00017856,2]
[405872301,1771375853989,-200.0,0.00017856,2]
[405872302,1771375854000,-857.54012593,0.00017863,2]
[405872303,1771375854012,-2439.614877,0.00017883,2]
[405872304,1771375854022,-1000.0,0.00017893,2]
[405872305,1771375854034,-162.702,0.000179,2]
[405872306,1771375854047,-1164.0,0.000179,2]
[405872307,1771375854057,-3540.659,0.000179,2]
[405872308,1771375854067,-1338.0,0.000179,2]
[405872309,1771375854077,-619.543,0.000179,2]
[405872310,1771375854092,-150.248,0.000179,2]
[405872311,1771375854111,-1275.0,0.000179,2]
[405872312,1771375854133,-1220.627,0.000179,2]
[405872313,1771375854146,-919.0,0.000179,2]
[405872314,1771375854158,-5973.0,0.000179,2]
[405872315,1771375854169,-25000.0,0.000179,3]
[405872316,1771375854185,-3183.0,0.000179,6]
[405872317,1771375854199,-33727.00783268,0.000179,2]
[405872318,1771375854210,-20103.63193877,0.000179,2]
[405872319,1771375854222,-3576.92029958,0.000179,2]
[405872320,1771375854235,-1000.0,0.00017911,2]
[405872321,1771375854248,-500.0,0.00017922,2]
[405872322,1771375854261,-500.0,0.00017922,2]
[405872323,1771375854272,-500.0,0.00017922,2]
[405872324,1771375854283,-500.0,0.00017922,2]
[405872325,1771375854292,-500.0,0.00017922,2]
[405872326,1771375854303,-500.0,0.00017922,2]
[405872327,1771375854313,-582.63,0.00017922,2]
[405872328,1771375854324,-382.0,0.00017922,2]
[405872329,1771375854335,-417.0,0.00017924,2]
[405872330,1771375854345,-152.0,0.00017939,7]
[405872331,1771375854356,-1000.0,0.00017949,2]
[405872332,1771375854367,-1000.0,0.00017949,2]
[405872333,1771375854379,-1000.0,0.00017949,2]
[405872334,1771375854390,-1000.0,0.00017949,2]
[405872335,1771375854401,-1000.0,0.00017949,2]
[405872336,1771375854413,-1000.0,0.00017949,2]
[405872337,1771375854423,-1000.0,0.00017949,2]
[405872338,1771375854433,-1000.0,0.00017949,2]
[405872339,1771375854442,-1000.0,0.00017949,2]
[405872340,1771375854453,-1000.0,0.00017961,2]
[405872341,1771375854464,-151.0,0.00017997,2]
[405872342,1771375854475,-274.7470256,0.00017999,2]
[405872343,1771375854490,-150.0,0.00017999,2]
[405872344,1771375854500,-549.96832623,0.00017999,2]
[405872345,1771375854511,-408.30474244,0.00017999,2]
[405872346,1771375854523,-300.0,0.00017999,2]
[405872347,1771375854532,-300.0,0.00017999,2]
[405872348,1771375854542,-300.0,0.00017999,2]
[405872349,1771375854551,-300.0,0.00017999,2]
[405872350,1771375854563,-666.0,0.00017999,2]
[405872351,1771375854574,-300.0,0.00017999,2]
[405872352,1771375854585,-300.0,0.00017999,2]
[405872353,1771375854595,-300.0,0.00017999,2]
[405872354,1771375854607,-243.22753519,0.00017999,2]
[405872355,1771375854621,-150.0,0.00018,2]
[405872356,1771375854632,-538577.82578912,0.00018,2]
[405872357,1771375855250,-251.80538329,0.00018,2]
[405872358,1771375855350,-152.0,0.00010119,3]
[405872359,1771375855361,-1209.29,0.00018,2]
[405872360,1771375855379,-269.4242826,0.000179,2]
[405872361,1771375855401,-259.39905185,0.000179,2]
[405872362,1771375855566,-664.0133958,0.0001,2]
[405872363,1771375855576,-1336.0916007,0.000179,2]
[405872364,1771375855602,-562.39994,0.000179,2]
[405872365,1771375855614,-24.68512485,0.000179,2]
[405872366,1771375855623,-151.9048494,0.000179,2]
[405872367,1771375855632,-168.41002575,0.00018,2]
[405872368,1771375855878,-1000.0,0.00018,2]
[405872369,1771375855917,-1260.995129,0.00018,2]
[405872370,1771375855928,-4521.94999975,0.00018,2]
[405872371,1771375855970,-10558.5,0.00018,2]
[405872372,1771376090956,200.0,0.00018,30]
[405872376,1771376269547,751.0,0.00018,30]
[405872377,1771376299082,752.67,0.00018,30]
[405872378,1771376335340,500.0,0.00018,30]
[405872379,1771376414673,2294.9,6.69e-05,2]
[405872397,1771376561272,500.0,0.00018,30]
[405872398,1771376608001,1000.0,0.00018,30]
[405872399,1771376632606,1188.43,0.00018,30]
[405872400,1771376656018,500.0,0.00018,30]
[405872401,1771376664588,500.0,0.00018,30]
[405872402,1771376680704,171.93,6.447e-05,2]
[405872419,1771377030380,-967.87,6.622e-05,2]
[405872420,1771377030402,-967.87,6.683e-05,2]
[405872421,1771377030423,-967.87,6.745e-05,2]
[405872422,1771377030448,-967.87,6.806e-05,2]
[405872423,1771377030468,-967.87,6.868e-05,2]
[405872424,1771377030488,-967.87,6.929e-05,2]
[405872425,1771377030513,-967.87,6.991e-05,2]
[405872426,1771377030534,-967.87,7.052e-05,2]
[405872427,1771377030555,-1200.0,7.113e-05,2]
[405872428,1771377030575,-967.87,7.114e-05,2]
[405872429,1771377030595,-967.87,7.175e-05,2]
[405872430,1771377030615,-967.87,7.237e-05,2]
[405872431,1771377030635,-967.87,7.298e-05,2]
[405872432,1771377030655,-406.0,7.354e-05,2]
[405872433,1771377030675,-967.87,7.36e-05,2]
[405872434,1771377030695,-182.0,7.368e-05,2]
[405872435,1771377030715,-179.0,7.383e-05,2]
[405872436,1771377030735,-967.87,7.421e-05,2]
[405872437,1771377030755,-967.87,7.483e-05,2]
[405872438,1771377030775,-967.87,7.544e-05,2]
[405872439,1771377030794,-967.87,7.606e-05,2]
[405872440,1771377030814,-967.87,7.668e-05,2]
[405872441,1771377030838,-967.87,7.729e-05,2]
[405872442,1771377030859,-967.87,7.791e-05,2]
[405872443,1771377030881,-1680.0,7.824e-05,2]
[405872444,1771377030902,-171.93,8.058e-05,2]
[405872445,1771377030923,-1500.0,8.134e-05,2]
[405872446,1771377030943,-1000.0,8.219e-05,2]
[405872447,1771377030964,-150.0,8.409e-05,2]
[405872448,1771377030984,-2032.5562,8.41e-05,2]
[405872449,1771377031005,-83241.6424,8.41e-05,2]
[405872450,1771377031026,-7742.069,8.437e-05,2]
[405872451,1771377031046,-746.846,8.437e-05,2]
[405872452,1771377031066,-763.76,8.494e-05,2]
[405872453,1771377031085,-151.0,8.504e-05,2]
[405872454,1771377031105,-151.0,8.504e-05,2]
[405872455,1771377031127,-1279344.7964,8.507e-05,2]
[405872461,1771377032274,-552.26765048,8.507e-05,2]
[405872462,1771377032285,-403.32000001,8.507e-05,2]
[405872463,1771377032296,-378.23771447,8.507e-05,2]
[405872464,1771377032306,-261.30518747,8.507e-05,2]
[405872472,1771377038371,-1086.8797393,8.507e-05,2]
[405872473,1771377038382,-302.38540097,8.507e-05,2]
[405872474,1771377038483,-2217670.8079073,8.507e-05,2]
[405872475,1771377038493,-20103.63193879,8.508e-05,2]
[405872476,1771377038503,-6737.6189,8.51e-05,2]
[405872477,1771377038512,-230.99,8.6e-05,2]
[405872478,1771377038522,-1600.0,8.6e-05,3]
[405872479,1771377038532,-2351.0,8.607e-05,2]
[405872480,1771377038541,-194.0,8.608e-05,2]
[405872482,1771377038550,-500.0,8.608e-05,2]
[405872484,1771377038560,-1950.0,8.609e-05,2]
[405872486,1771377038570,-1950.0,8.609e-05,7]
[405872488,1771377038580,-346.58,8.609e-05,2]
[405872490,1771377038589,-9999.99,8.609e-05,2]
[405872492,1771377038598,-9999.99,8.609e-05,2]
[405872495,1771377038608,-9999.99,8.609e-05,2]
[405872497,1771377038618,-299.99,8.609e-05,2]
[405872499,1771377038627,-9999.99,8.609e-05,2]
[405872500,1771377038636,-150.99,8.609e-05,2]
[405872503,1771377038646,-999.99,8.609e-05,2]
[405872505,1771377038655,-150.99,8.609e-05,2]
[405872507,1771377038665,-9999.99,8.609e-05,2]
[405872508,1771377038674,-1471.46208079,8.609e-05,2]
[405872511,1771377038684,-10000.0,8.61e-05,2]
[405872513,1771377038693,-4259.95,8.669e-05,2]
[405872515,1771377038701,-153.99,8.7e-05,2]
[405872518,1771377038710,-3200.0,8.7e-05,3]
[405872520,1771377038720,-250.0,8.75e-05,2]
[405872523,1771377038729,-442237.0518033,8.799e-05,2]
[405872525,1771377038739,-4800.0,8.8e-05,3]
[405872526,1771377038748,-250.0,8.864e-05,2]
[405872528,1771377038757,-250.0,8.864e-05,2]
[405872531,1771377038767,-193.0,8.864e-05,2]
[405872533,1771377038776,-250.0,8.864e-05,2]
[405872535,1771377038785,-32850.4601,8.868e-05,2]
[405872537,1771377038794,-500.0,8.882e-05,2]
[405872538,1771377038803,-6400.0,8.9e-05,3]
[405872541,1771377038812,-8587.62,8.942e-05,2]
[405872542,1771377038822,-8100.0,9e-05,3]
[405872544,1771377038834,-500.0,9.156e-05,2]
[405872546,1771377038843,-1000.0,9.247e-05,2]
[405872548,1771377038852,-255.0,9.249e-05,2]
[405872551,1771377038861,-500.0,9.43e-05,2]
[405872552,1771377038871,-312.5279068,9.458e-05,2]
[405872555,1771377038881,-3292.0,9.467e-05,2]
[405872556,1771377038891,-350.0,9.547e-05,2]
[405872558,1771377038901,-154.0,9.566e-05,2]
[405872560,1771377038911,-169.22,9.668e-05,2]
[405872562,1771377038921,-14381.39,9.67e-05,2]
[405872565,1771377038931,-9999.99,9.67e-05,2]
[405872567,1771377038940,-1401.0,9.67e-05,2]
[405872569,1771377038951,-171.93,9.67e-05,2]